fUSD/lending_fUSD_20240726
["ID","MTS","AMOUNT","RATE_DAILY","PERIOD"]
[333255468,1721992232235,-150.0,0.00010868,2]
[333255469,1721992232245,-150.0,0.00010878,2]
[333255470,1721992232254,-150.0,0.00010878,2]
[333255471,1721992232264,-300.0,0.00010882,2]
[333255472,1721992232273,-150.0,0.00010884,2]
[333255473,1721992232282,-150.0,0.00010888,2]
[333255474,1721992232291,-149.44449087,0.00010888,2]
[333255475,1721992232802,-0.55550913,0.00010888,2]
[333255476,1721992232812,-150.0,0.0001089,2]
[333255477,1721992232821,-556.38,0.000109,2]
[333255478,1721992232830,-150.0,0.00010922,2]
[333255479,1721992232839,-150.0,0.00010923,2]
[333255480,1721992232848,-150.0,0.00010923,2]
[333255481,1721992232857,-150.0,0.00010924,2]
[333255482,1721992232866,-300.0,0.00010936,2]
[333255483,1721992232876,-150.0,0.00010948,2]
[333255484,1721992232885,-150.0,0.0001095,2]
[333255485,1721992232895,-150.0,0.0001095,2]
[333255486,1721992232904,-150.0,0.00010957,2]
[333255487,1721992232913,-500.0,0.00010958,2]
[333255488,1721992232923,-500.0,0.00010958,2]
[333255489,1721992232933,-500.0,0.00010958,2]
[333255490,1721992232942,-500.0,0.00010958,2]
[333255491,1721992232951,-500.0,0.00010958,2]
[333255492,1721992232961,-410.7280095,0.00010958,2]
[333255493,1721992232970,-500.0,0.00010958,2]
[333255494,1721992232979,-500.0,0.00010958,2]
[333255495,1721992232989,-500.0,0.00010958,2]
[333255496,1721992232998,-500.0,0.00010958,2]
[333255497,1721992233007,-500.0,0.00010958,2]
[333255498,1721992233016,-500.0,0.00010958,2]
[333255499,1721992233026,-500.0,0.00010958,2]
[333255500,1721992233036,-500.0,0.00010958,2]
[333255501,1721992233046,-500.0,0.00010958,2]
[333255502,1721992233056,-500.0,0.00010958,2]
[333255503,1721992233071,-500.0,0.00010958,2]
[333255504,1721992233081,-500.0,0.00010958,2]
[333255505,1721992233092,-500.0,0.00010958,2]
[333255506,1721992233103,-266.54672448,0.00010958,2]
[333255507,1721992233575,-233.45327552,0.00010958,2]
[333255508,1721992233585,-500.0,0.00010958,2]
[333255509,1721992233594,-500.0,0.00010958,2]
[333255510,1721992233604,-500.0,0.00010958,2]
[333255511,1721992233613,-13.09734974,0.00010958,2]
[333255512,1721992233625,-486.90265026,0.00010958,2]
[333255513,1721992233634,-500.0,0.00010958,2]
[333255514,1721992233644,-500.0,0.00010958,2]
[333255515,1721992233653,-357.67023391,0.00010958,2]
[333255516,1721992233663,-500.0,0.00010958,2]
[333255517,1721992233673,-500.0,0.00010958,2]
[333255518,1721992233683,-500.0,0.00010958,2]
[333255519,1721992233693,-159.50201877,0.00010958,2]
[333255520,1721992237928,-361.59798123,0.00010958,2]
[333255521,1721992237939,-500.0,0.00010958,2]
[333255522,1721992237948,-500.0,0.00010958,2]
[333255523,1721992237958,-500.0,0.00010958,2]
[333255524,1721992237968,-323.0,0.00010958,2]
[333255525,1721992237978,-500.0,0.00010958,2]
[333255526,1721992237988,-500.0,0.00010958,2]
[333255527,1721992237997,-500.0,0.00010958,2]
[333255528,1721992238006,-500.0,0.00010958,2]
[333255529,1721992238016,-500.0,0.00010958,2]
[333255530,1721992238025,-500.0,0.00010958,2]
[333255531,1721992238034,-500.0,0.00010958,2]
[333255532,1721992238043,-500.0,0.00010958,2]
[333255533,1721992238053,-500.0,0.00010958,2]
[333255534,1721992238062,-500.0,0.00010958,2]
[333255535,1721992238076,-500.0,0.00010958,2]
[333255536,1721992238085,-500.0,0.00010958,2]
[333255537,1721992238095,-500.0,0.00010958,2]
[333255538,1721992238104,-500.0,0.00010958,2]
[333255539,1721992238114,-500.0,0.00010958,2]
[333255540,1721992238124,-500.0,0.00010958,2]
[333255541,1721992238133,-136.95739717,0.00010958,2]
[333255576,1721992240154,-150.0,0.00010773,2]
[333255577,1721992240164,-150.0,0.00010821,2]
[333255578,1721992240174,-4.83224041,0.00010958,2]
[333255579,1721992240185,-358.21036242,0.00010958,2]
[333255580,1721992240195,-210.30537232,0.00010958,2]
[333255581,1721992240367,-150.0,0.00010912,2]
[333255582,1721992240376,-150.0,0.00010947,2]
[333255583,1721992240385,-289.69462768,0.00010958,2]
[333255584,1721992240394,-500.0,0.00010958,2]
[333255585,1721992240404,-647.25,0.00010958,2]
[333255586,1721992240413,-500.0,0.00010958,2]
[333255587,1721992240422,-500.0,0.00010958,2]
[333255588,1721992240431,-387.85,0.00010958,2]
[333255589,1721992240441,-411.25,0.00010958,2]
[333255590,1721992240451,-500.0,0.00010958,2]
[333255591,1721992240460,-500.0,0.00010958,2]
[333255592,1721992240471,-500.0,0.00010958,2]
[333255593,1721992240481,-500.0,0.00010958,2]
[333255594,1721992240490,-500.0,0.00010958,2]
[333255595,1721992240500,-500.0,0.00010958,2]
[333255596,1721992240509,-500.0,0.00010958,2]
[333255597,1721992240518,-434.1026191,0.00010958,2]
[333255598,1721992240528,-500.0,0.00010958,2]
[333255599,1721992240538,-500.0,0.00010958,2]
[333255600,1721992240548,-500.0,0.00010958,2]
[333255601,1721992240557,-500.0,0.00010958,2]
[333255602,1721992240566,-559.92,0.00010958,2]
[333255603,1721992240576,-500.0,0.00010958,2]
[333255604,1721992240586,-648.12231844,0.00010958,2]
[333255605,1721992240595,-500.0,0.00010958,2]
[333255606,1721992240604,-500.0,0.00010958,2]
[333255607,1721992240613,-500.0,0.00010958,2]
[333255608,1721992240622,-500.0,0.00010958,2]
[333255609,1721992240631,-500.0,0.00010958,2]
[333255610,1721992240641,-500.0,0.00010958,2]
[333255611,1721992240650,-500.0,0.00010958,2]
[333255612,1721992240659,-500.0,0.00010958,2]
[333255614,1721992240668,-500.0,0.00010958,2]
[333255616,1721992240677,-500.0,0.00010958,2]
[333255617,1721992240686,-500.0,0.00010958,2]
[333255618,1721992240697,-500.0,0.00010958,2]
[333255619,1721992240706,-500.0,0.00010958,2]
[333255620,1721992240716,-500.0,0.00010958,2]
[333255621,1721992240730,-500.0,0.00010958,2]
[333255622,1721992240739,-500.0,0.00010958,2]
[333255623,1721992240748,-500.0,0.00010958,2]
[333255624,1721992240757,-500.0,0.00010958,2]
[333255625,1721992240768,-501.73248629,0.00010958,2]
[333255626,1721992240778,-500.0,0.00010958,2]
[333255627,1721992240786,-500.0,0.00010958,2]
[333255628,1721992240795,-503.10229906,0.00010958,2]
[333255629,1721992240805,-500.0,0.00010958,2]
[333255630,1721992240814,-160.48,0.00010958,2]
[333255631,1721992240823,-501.80594595,0.00010958,2]
[333255632,1721992240832,-500.0,0.00010958,2]
[333255633,1721992240842,-417.45,0.00010958,2]
[333255634,1721992240851,-500.0,0.00010958,2]
[333255635,1721992240860,-567.71,0.00010958,2]
[333255636,1721992240869,-500.0,0.00010958,2]
[333255637,1721992240879,-500.26456519,0.00010958,2]
[333255638,1721992240888,-500.0,0.00010958,2]
[333255639,1721992240897,-513.41774773,0.00010958,2]
[333255640,1721992240906,-503.17776251,0.00010958,2]
[333255641,1721992240915,-503.65311456,0.00010958,2]
[333255642,1721992240925,-218.10845645,0.00010958,2]
[333255643,1721992240934,-504.60310984,0.00010958,2]
[333255644,1721992240945,-500.0,0.00010958,2]
[333255645,1721992240954,-500.0,0.00010958,2]
[333255646,1721992240963,-444.3699329,0.00010958,2]
[333255647,1721992240973,-504.12332903,0.00010958,2]
[333255648,1721992240983,-500.0,0.00010958,2]
[333255649,1721992240992,-500.0,0.00010958,2]
[333255650,1721992241001,-480.0,0.00010958,2]
[333255651,1721992241009,-500.0,0.00010958,2]
[333255652,1721992241018,-500.0,0.00010958,2]
[333255653,1721992241028,-341.89244067,0.00010958,2]
[333255654,1721992242847,-266.35744076,0.00010735,2]
[333255655,1721992242857,-158.10755933,0.00010958,2]
[333255656,1721992242867,-500.0,0.00010958,2]
[333255657,1721992242876,-501.29532298,0.00010958,2]
[333255658,1721992242885,-500.0,0.00010958,2]
[333255659,1721992242895,-168.88,0.00010958,2]
[333255660,1721992242904,-500.0,0.00010958,2]
[333255661,1721992242914,-503.66869539,0.00010958,2]
[333255662,1721992242923,-500.0,0.00010958,2]
[333255663,1721992242933,-500.0,0.00010958,2]
[333255664,1721992242943,-500.0,0.00010958,2]
[333255665,1721992242952,-77.43805091,0.00010958,2]
[333255666,1721992243035,-473.11437188,0.00010958,2]
[333255667,1721992243044,-500.0,0.00010958,2]
[333255668,1721992243054,-65.26735101,0.00010958,2]
[333255669,1721992243223,-434.73264899,0.00010958,2]
[333255670,1721992243233,-32.19841066,0.00010958,2]
[333255692,1721992246111,-467.80158934,0.00010958,2]
[333255693,1721992246120,-227.8568377,0.00010958,2]
[333255694,1721992246571,-326.3231623,0.00010958,2]
[333255695,1721992246580,-347.9504377,0.00010958,2]
[333255696,1721992246591,-152.0495623,0.00010958,2]
[333255697,1721992246600,-500.0,0.00010958,2]
[333255698,1721992246610,-265.15447921,0.00010958,2]
[333255699,1721992246619,-500.0,0.00010958,2]
[333255700,1721992246628,-500.0,0.00010958,2]
[333255701,1721992246637,-73.99161745,0.00010958,2]
[333255702,1721992272809,151.74,0.0001789,120]
[333255703,1721992273445,150.5,0.0001789,120]
[333255704,1721992273836,209.0,0.0001789,120]
[333255705,1721992273921,150.5,0.0001788,120]
[333255706,1721992274282,209.0,0.0001788,120]
[333255707,1721992274398,150.5,0.0001787,120]
[333255708,1721992274760,209.0,0.0001787,120]
[333255709,1721992274879,150.5,0.0001789,120]
[333255710,1721992275216,209.0,0.0001789,120]
[333255711,1721992275363,295.36,0.0001788,120]
[333255712,1721992275671,209.0,0.0001788,120]
[333255713,1721992276141,209.0,0.0001787,120]
[333255714,1721992276629,209.0,0.0001789,120]
[333255715,1721992277103,209.0,0.0001788,120]
[333255716,1721992277575,209.0,0.0001789,120]
[333255717,1721992278051,215.0,0.0001788,120]
[333255719,1721992405121,320.92,0.0001337,30]
[333255739,1721992504261,171.90652186,5e-05,2]
[333255740,1721992545094,652.40503699,5e-05,2]
[333255741,1721992551770,1175.68844115,5e-05,2]
[333255742,1721992551791,2000.0,5e-05,2]
[333255743,1721992551813,2000.0,5e-05,2]
[333255744,1721992551833,2000.0,5e-05,2]
[333255745,1721992551853,2000.0,5e-05,2]
[333255746,1721992551877,2000.0,5e-05,2]
[333255747,1721992551898,2000.0,5e-05,2]
[333255748,1721992551918,2000.0,5e-05,2]
[333255749,1721992551939,2000.0,5e-05,2]
[333255750,1721992551959,2000.0,5e-05,2]
[333255751,1721992551983,546.84349405,5e-05,2]
[333255752,1721992556425,485.05125098,5e-05,2]
[333255753,1721992557931,871.22841201,5e-05,2]
[333255754,1721992559087,96.87684296,6.061e-05,2]
[333255755,1721992559110,742.66873671,6.061e-05,2]
[333255756,1721992563085,363.58073735,5e-05,2]
[333255757,1721992565226,7569.89827325,5e-05,2]
[333255758,1721992566305,155.0,5e-05,2]
[333255759,1721992567070,291.25364528,5e-05,2]
[333255760,1721992567110,790.19026682,5e-05,2]
[333255761,1721992567233,155.20228337,5e-05,2]
[333255762,1721992568141,199.73247078,5e-05,2]
[333255763,1721992568804,155.0,5e-05,2]
[333255764,1721992569755,20367.51089698,5e-05,2]
[333255765,1721992571294,155.0,5e-05,2]
[333255766,1721992574353,839.54557967,6.061e-05,2]
[333255767,1721992575069,155.0,5e-05,2]
[333255768,1721992576770,158.87294729,5e-05,2]
[333255769,1721992577675,797.48730297,5e-05,2]
[333255771,1721992582010,220.12459623,5e-05,2]
[333255772,1721992600312,411.44480674,5e-05,2]
[333255773,1721992602723,7569.89827325,6.061e-05,2]
[333255774,1721992604501,871.22841201,6.061e-05,2]
[333255775,1721992604867,790.19026682,6.061e-05,2]
[333255776,1721992607253,17819.41258766,6.061e-05,2]
[333255777,1721992607764,797.48730297,5e-05,2]
[333255778,1721992607859,155.0,6.061e-05,2]
[333255779,1721992608911,485.05125098,6.061e-05,2]
[333255780,1721992617585,363.58073735,6.061e-05,2]
[333255781,1721992618846,155.0,6.061e-05,2]
[333255782,1721992622588,291.25364528,6.061e-05,2]
[333255783,1721992624094,466.41421093,6.061e-05,2]
[333255784,1721992624173,158.87294729,6.061e-05,2]
[333255785,1721992624317,155.0,5e-05,2]
[333255788,1721992638620,790.19026682,6.061e-05,2]
[333255789,1721992638830,411.95790619,6.061e-05,2]
[333255790,1721992650467,871.22841201,6.061e-05,2]
[333255791,1721992651182,797.48730297,6.061e-05,2]
[333255792,1721992653724,7569.89827325,6.061e-05,2]
[333255793,1721992659811,291.32326188,6.061e-05,2]
[333255794,1721992660087,243.00180389,6.061e-05,2]
[333255795,1721992662911,485.05125098,6.061e-05,2]
[333255796,1721992664591,363.58073735,6.061e-05,2]
[333255797,1721992668067,155.0,6.061e-05,2]
[333255798,1721992669188,158.87294729,6.061e-05,2]
[333255799,1721992675609,155.0,6.061e-05,2]
[333255800,1721992690313,155.0,5e-05,2]
[333255801,1721992753364,150.5,0.0001789,120]
[333255802,1721992753817,150.5,0.0001788,120]
[333255803,1721992755311,150.5,0.0001787,120]
[333255804,1721992755852,150.5,0.0001789,120]
[333255805,1721992756324,150.5,0.0001788,120]
[333255806,1721992756771,150.5,0.0001787,120]
[333255807,1721992757289,150.5,0.0001789,120]
[333255808,1721992757818,150.5,0.0001788,120]
[333255809,1721992758290,296.0,0.0001789,120]
[333255810,1721992760316,224.55669351,6.061e-05,2]
[333255811,1721992802224,150.0,6.061e-05,2]
[333255812,1721992802657,150.0,6.061e-05,2]
[333255813,1721992803604,150.0,6.061e-05,2]
[333255814,1721992803654,156.54198804,6.061e-05,2]
[333255815,1721992839238,7569.89827325,6.061e-05,2]
[333255816,1721992840687,797.48730297,6.061e-05,2]
[333255817,1721992842945,871.22841201,6.061e-05,2]
[333255818,1721992844418,485.05125098,6.061e-05,2]
[333255819,1721992845148,790.19026682,6.061e-05,2]
[333255820,1721992857135,434.48405773,6.061e-05,2]
[333255821,1721992857313,155.0,6.061e-05,2]
[333255822,1721992861134,790.19026682,6.061e-05,2]
[333255823,1721992867085,300.41085679,6.061e-05,2]
[333255824,1721992880694,158.87294729,6.061e-05,2]
[333255826,1721992929692,221.86,9.1e-05,10]
[333255827,1721992943952,561.51540152,6.061e-05,2]
[333255828,1721992947691,797.48730297,6.061e-05,2]
[333255829,1721992948245,4831.22183185,6.061e-05,2]
[333255830,1721992951601,485.05125098,6.061e-05,2]
[333255831,1721992966592,294.17,0.0001337,30]
[333255832,1721992989809,172.49600257,6.061e-05,2]
[333255833,1721992992201,790.19026682,6.061e-05,2]
[333255834,1721993022210,790.19026682,6.061e-05,2]
[333255835,1721993032922,485.05125098,6.061e-05,2]
[333255836,1721993048690,810.2569741,6.061e-05,2]
[333255857,1721993104240,485.05125098,6.061e-05,2]
[333255858,1721993133221,790.19026682,6.061e-05,2]
[333255859,1721993155045,2864.62952497,6.94e-05,2]
[333255864,1721993219027,485.05125098,6.94e-05,2]
[333255865,1721993231367,224.46863623,6.94e-05,2]
[333255872,1721993323955,485.05125098,6.94e-05,2]
[333255873,1721993338948,485.05125098,6.94e-05,2]
[333255887,1721993431979,-232.4,8.219e-05,2]
[333255888,1721993431989,-485.05125098,8.412e-05,2]
[333255889,1721993431999,-1000.0,9.895e-05,2]
[333255890,1721993432008,-250.0,9.901e-05,2]
[333255891,1721993432018,-4004.91,9.905e-05,2]
[333255892,1721993432027,-440.86,9.912e-05,2]
[333255893,1721993432037,-300.0,9.972e-05,2]
[333255894,1721993432046,-300.0,9.972e-05,2]
[333255896,1721993432055,-197.77874902,9.972e-05,2]
[333255898,1721993432179,-102.22125098,9.972e-05,2]
[333255899,1721993432189,-2313.77874902,9.974e-05,2]
[333255900,1721993432202,-848.36125098,9.974e-05,2]
[333255901,1721993432212,-2201.52874902,0.00010365,2]
[333255902,1721993432224,-2000.0,0.00010365,2]
[333255903,1721993432371,-798.47125098,0.00010365,2]
[333255904,1721993432382,-485.88460033,0.00010365,2]
[333255905,1721993432393,-726.72999162,0.00010365,2]
[333255906,1721993432404,-2194.55656055,0.00010365,2]
[333255907,1721993432842,-506.58096069,0.00010365,2]
[333255908,1721993433502,-781.03258899,0.00010365,2]
[333255909,1721993433521,-305.21529782,0.00010365,2]
[333255910,1721993433531,-232.4,0.00010473,2]
[333255911,1721993433541,-150.0,0.00010764,2]
[333255912,1721993433550,-150.99,0.00010778,2]
[333255913,1721993433561,-499.99,0.00010778,2]
[333255914,1721993433571,-189.3426765,0.0001078,2]
[333255915,1721993433581,-150.0,0.00010795,2]
[333255916,1721993433591,-150.0,0.00010824,2]
[333255917,1721993433601,-300.0,0.00010825,2]
[333255918,1721993433611,-150.0,0.00010835,2]
[333255919,1721993433621,-283.914,0.00010867,2]
[333255920,1721993433630,-909.1108,0.00010867,2]
[333255921,1721993433640,-11540.17798568,0.0001088,2]
[333255931,1721993437917,-2468.08349137,0.0001088,2]
[333255933,1721993437929,-599.17001685,0.0001088,2]
[333255942,1721993438053,-6284.7374,0.0001088,2]
[333255943,1721993438065,-264.43385958,0.0001088,2]
[333255959,1721993439976,-300.0,9.9e-05,3]
[333255961,1721993439986,-998.59640827,0.0001088,2]
[333255963,1721993439995,-150.0,0.00010898,2]
[333255965,1721993440004,-150.0,0.00010898,2]
[333255967,1721993440013,-806.17651687,0.00010899,2]
[333255970,1721993440027,-666.786,0.00010899,2]
[333255977,1721993440175,-3865.88218313,0.00010899,2]
[333255978,1721993440187,-431.0452,0.00010899,2]
[333255979,1721993440198,-2087.7494,0.00010899,2]
[333255980,1721993440210,-150.0,0.00010899,2]
[333255981,1721993440222,-1000.0,0.000109,2]
[333255982,1721993440232,-55430.3955,0.000109,2]
[333255983,1721993440243,-150.0,0.00010951,2]
[333255984,1721993440255,-426.00838255,0.00010958,2]
[333255985,1721993440266,-583.73,0.00010958,2]
[333255986,1721993440278,-500.0,0.00010958,2]
[333255987,1721993440289,-500.0,0.00010958,2]
[333255988,1721993440299,-500.0,0.00010958,2]
[333255989,1721993440309,-517.97,0.00010958,2]
[333255990,1721993440320,-500.0,0.00010958,2]
[333255991,1721993440331,-500.0,0.00010958,2]
[333255992,1721993440343,-500.0,0.00010958,2]
[333255993,1721993440353,-500.0,0.00010958,2]
[333255994,1721993440365,-500.0,0.00010958,2]
[333255997,1721993440376,-500.0,0.00010958,2]
[333255999,1721993440387,-500.0,0.00010958,2]
[333256001,1721993440397,-500.0,0.00010958,2]
[333256002,1721993440408,-500.0,0.00010958,2]
[333256005,1721993440418,-492.69489206,0.00010958,2]
[333256007,1721993440428,-500.10230238,0.00010958,2]
[333256009,1721993440438,-500.0,0.00010958,2]
[333256011,1721993440449,-501.91238765,0.00010958,2]
[333256013,1721993440461,-500.0,0.00010958,2]
[333256016,1721993440476,-500.0,0.00010958,2]
[333256020,1721993440487,-588.57622858,0.00010958,2]
[333256023,1721993440499,-500.0,0.00010958,2]
[333256025,1721993440509,-500.0,0.00010958,2]
[333256029,1721993440521,-500.0,0.00010958,2]
[333256031,1721993440532,-500.0,0.00010958,2]
[333256033,1721993440544,-500.0,0.00010958,2]
[333256035,1721993440555,-500.0,0.00010958,2]
[333256037,1721993440567,-500.0,0.00010958,2]
[333256040,1721993440578,-500.0,0.00010958,2]
[333256042,1721993440589,-502.67928284,0.00010958,2]
[333256044,1721993440601,-500.0,0.00010958,2]
[333256046,1721993440612,-500.0,0.00010958,2]
[333256048,1721993440622,-258.24983503,0.00010958,2]
[333256050,1721993440633,-500.0,0.00010958,2]
[333256052,1721993440643,-500.0,0.00010958,2]
[333256054,1721993440652,-501.96262989,0.00010958,2]
[333256057,1721993440662,-502.31799201,0.00010958,2]
[333256059,1721993440672,-501.68596186,0.00010958,2]
[333256061,1721993440682,-500.0,0.00010958,2]
[333256063,1721993440693,-500.0,0.00010958,2]
[333256065,1721993440705,-569.43776237,0.00010958,2]
[333256067,1721993440718,-502.11967255,0.00010958,2]
[333256068,1721993440731,-500.51438526,0.00010958,2]
[333256069,1721993440741,-500.0,0.00010958,2]
[333256070,1721993440751,-500.0,0.00010958,2]
[333256071,1721993440761,-500.0,0.00010958,2]
[333256072,1721993440773,-500.0,0.00010958,2]
[333256073,1721993440784,-502.11418819,0.00010958,2]
[333256074,1721993440794,-503.68217259,0.00010958,2]
[333256075,1721993440807,-500.0,0.00010958,2]
[333256076,1721993440819,-500.0,0.00010958,2]
[333256077,1721993440829,-498.29494946,0.00010958,2]
[333256078,1721993440839,-348.14470578,0.00010958,2]
[333256079,1721993440849,-59.35228727,0.00010958,2]
[333256080,1721993440864,-440.64771273,0.00010958,2]
[333256081,1721993440874,-500.0,0.00010958,2]
[333256082,1721993440886,-515.79432418,0.00010958,2]
[333256083,1721993440896,-520.42233952,0.00010958,2]
[333256084,1721993440906,-255.94146036,0.00010958,2]
[333256085,1721993440917,-3000.0,0.00010958,2]
[333256086,1721993440927,-200.0,0.00010959,2]
[333256087,1721993440938,-250.0,0.00010959,2]
[333256088,1721993440949,-413.7,0.00010959,2]
[333256089,1721993440962,-344.75,0.00010959,2]
[333256090,1721993440972,-287.3,0.00010959,2]
[333256091,1721993440983,-239.41,0.00010959,2]
[333256092,1721993440994,-199.51,0.00010959,2]
[333256093,1721993441004,-166.26,0.00010959,2]
[333256094,1721993441015,-831.32,0.00010959,2]
[333256095,1721993441026,-301.01828484,0.00010962,2]
[333256096,1721993441039,-16656.73949982,0.00010967,2]
[333256097,1721993441057,-1247.32567858,0.00010967,2]
[333256100,1721993443072,-600.0,0.0001,3]
[333256101,1721993443083,-6.79809421,0.00010899,2]
[333256102,1721993443097,-3465.7968536,0.00010899,2]
[333256103,1721993443123,-880.36175698,0.00010899,2]
[333256104,1721993443269,-1246.49354302,0.00010899,2]
[333256105,1721993443282,-381.65115219,0.00010899,2]
[333256106,1721993443292,-348.42025014,0.00010967,2]
[333256107,1721993443305,-652.62529538,0.00010967,2]
[333256108,1721993443318,-541.89266789,0.00010967,2]
[333256109,1721993443331,-28183.78687412,0.00010967,2]
[333256110,1721993443342,-420.0,0.00010969,2]
[333256111,1721993443352,-5223.32229053,0.00010988,2]
[333256112,1721993443364,-151.43,0.0001099,2]
[333256113,1721993443374,-150.49396578,0.00010991,2]
[333256114,1721993443385,-2958.0,0.00010996,2]
[333256115,1721993443395,-150.0,0.00010996,2]
[333256116,1721993443406,-1995.0,0.00010996,2]
[333256117,1721993443416,-1266.0,0.00010996,2]
[333256118,1721993443426,-278.0,0.00010996,2]
[333256119,1721993443436,-604.0,0.00010996,2]
[333256120,1721993443446,-433.0,0.00010996,2]
[333256121,1721993443457,-802.0,0.00010996,2]
[333256122,1721993443471,-358.0,0.00010996,2]
[333256123,1721993443481,-487.64432717,0.00010999,2]
[333256124,1721993443492,-500.0,0.00010999,2]
[333256125,1721993443503,-500.0,0.00010999,2]
[333256126,1721993443513,-500.0,0.00010999,2]
[333256127,1721993443523,-500.0,0.00010999,2]
[333256128,1721993443533,-500.0,0.00010999,2]
[333256129,1721993443543,-500.0,0.00010999,2]
[333256130,1721993443554,-500.0,0.00010999,2]
[333256131,1721993443565,-500.0,0.00010999,2]
[333256132,1721993443575,-180.47,0.00010999,2]
[333256133,1721993443586,-635.49458595,0.00010999,2]
[333256134,1721993443596,-500.0,0.00010999,2]
[333256135,1721993443606,-500.0,0.00010999,2]
[333256136,1721993443617,-500.0,0.00010999,2]
[333256137,1721993443627,-219.46,0.00010999,2]
[333256138,1721993443637,-500.0,0.00010999,2]
[333256139,1721993443647,-500.0,0.00010999,2]
[333256140,1721993443657,-500.0,0.00010999,2]
[333256141,1721993443667,-500.0,0.00010999,2]
[333256142,1721993443677,-500.0,0.00010999,2]
[333256143,1721993443687,-500.0,0.00010999,2]
[333256144,1721993443697,-500.0,0.00010999,2]
[333256145,1721993443707,-500.0,0.00010999,2]
[333256146,1721993443717,-500.0,0.00010999,2]
[333256147,1721993443727,-500.0,0.00010999,2]
[333256148,1721993443737,-500.0,0.00010999,2]
[333256149,1721993443748,-500.0,0.00010999,2]
[333256150,1721993443758,-278.32,0.00010999,2]
[333256151,1721993443768,-500.0,0.00010999,2]
[333256152,1721993443778,-500.0,0.00010999,2]
[333256153,1721993443788,-519.73055073,0.00010999,2]
[333256154,1721993443799,-239.21,0.00010999,2]
[333256155,1721993443809,-557.44,0.00010999,2]
[333256156,1721993443819,-243.64,0.00010999,2]
[333256157,1721993443828,-500.0,0.00010999,2]
[333256158,1721993443839,-500.0,0.00010999,2]
[333256159,1721993443849,-500.0,0.00010999,2]
[333256160,1721993443858,-511.34,0.00010999,2]
[333256161,1721993443868,-500.0,0.00010999,2]
[333256162,1721993443878,-500.0,0.00010999,2]
[333256163,1721993443888,-210.05122625,0.00010999,2]
[333256164,1721993443898,-500.0,0.00010999,2]
[333256165,1721993443908,-500.0,0.00010999,2]
[333256166,1721993443919,-500.0,0.00010999,2]
[333256167,1721993443929,-322.49,0.00010999,2]
[333256168,1721993443939,-500.0,0.00010999,2]
[333256169,1721993443950,-500.0,0.00010999,2]
[333256171,1721993443961,-500.0,0.00010999,2]
[333256173,1721993443972,-514.7126613,0.00010999,2]
[333256174,1721993443982,-500.0,0.00010999,2]
[333256175,1721993443992,-500.0,0.00010999,2]
[333256176,1721993444003,-500.0,0.00010999,2]
[333256177,1721993444013,-500.0,0.00010999,2]
[333256178,1721993444024,-500.0,0.00010999,2]
[333256179,1721993444035,-500.0,0.00010999,2]
[333256180,1721993444045,-500.0,0.00010999,2]
[333256181,1721993444055,-500.0,0.00010999,2]
[333256182,1721993444065,-500.0,0.00010999,2]
[333256183,1721993444075,-500.0,0.00010999,2]